bitfinex-derivatives/quotes_BNBF0:USTF0_20250908
["timestamp","ask_amount","ask_price","bid_price","bid_amount"]
[1757345279058,0.1967747,886.89,884.47,3.29738499]
[1757345279356,0.1967747,886.89,884.48,4.0699146]
[1757345279556,0.1967747,886.89,884.48,3.29738499]
[1757345281254,0.1967747,886.89,884.47,3.29738499]
[1757345284656,0.1967747,886.89,884.48,0.77222764]
[1757345284956,0.1967747,886.89,884.48,3.29738499]
[1757345285255,0.1967747,886.89,884.47,3.29738499]
[1757345286756,0.1967747,886.89,884.48,4.06952797]
[1757345287060,0.1967747,886.89,884.48,3.29738499]
[1757345287658,0.1967747,886.89,884.49,0.77206583]
[1757345287862,0.1967747,886.89,884.49,3.29738499]
[1757345288360,0.1967747,886.89,884.48,3.29738499]
[1757345288558,0.1967747,886.89,884.48,5.81869045]
[1757345300068,0.1967747,886.89,884.48,2.52130546]
[1757345300371,0.1967747,886.89,884.43,3.29738499]
[1757345305680,0.1967747,886.89,884.44,4.0682682]
[1757345305975,0.1967747,886.89,884.44,3.29738499]
[1757345309183,0.1967747,886.89,884.44,5.81869045]
[1757345313789,0.1967747,886.89,884.44,3.29738499]
[1757345314789,0.1967747,886.89,884.43,3.29738499]
[1757345317790,0.1967747,886.89,884.44,4.06773949]
[1757345317990,0.1967747,886.89,884.44,3.29738499]
[1757345320089,0.1967747,886.89,884.45,4.06774179]
[1757345320393,0.1967747,886.89,884.45,3.29738499]
[1757345320992,0.1967747,886.89,884.45,5.81869045]
[1757345321389,0.1967747,886.89,884.48,3.29738499]
[1757345321689,0.1967747,886.89,884.48,5.81869045]
[1757345329894,0.1967747,886.89,884.48,3.29738499]
[1757345337198,0.1967747,886.89,884.48,5.81869045]
[1757345337602,0.1967747,886.89,884.55,3.29738499]
[1757345337897,0.1967747,886.89,884.59,3.29738499]
[1757345338102,0.1967747,886.89,884.6,4.0669642]
[1757345338298,0.1967747,886.89,884.6,3.29738499]
[1757345338503,0.1967747,886.89,884.59,3.29738499]
[1757345340403,0.1967747,886.89,884.58,3.29738499]
[1757345343204,0.1967747,886.89,884.57,3.29738499]
[1757345343401,0.1967747,886.89,884.58,6.58791082]
[1757345343600,0.1967747,886.89,884.58,5.81869045]
[1757345347703,0.1967747,886.89,884.58,3.29738499]
[1757345348607,0.1967747,886.89,884.58,5.81869045]
[1757345350504,0.1967747,886.89,884.59,4.06623937]
[1757345350703,0.1967747,886.89,884.59,5.81869045]
[1757345351408,0.1967747,886.89,884.61,3.29738499]
[1757345351605,0.1967747,886.89,884.67,3.29738499]
[1757345352604,0.1967747,886.89,884.66,3.29738499]
[1757345352808,0.1967747,886.89,884.67,0.7684876]
[1757345353008,0.1967747,886.89,884.67,3.29738499]
[1757345354706,0.1967747,886.89,884.66,3.29738499]
[1757345358317,0.1967747,886.89,884.74,3.29738499]
[1757345359819,0.1967747,886.89,884.73,3.29738499]
[1757345369821,0.1967747,886.89,884.72,3.29738499]
[1757345372022,0.1967747,886.89,884.71,5.81869045]
[1757345372424,0.1967747,886.89,884.71,3.29738499]
[1757345373824,0.1967747,886.89,884.72,4.06440249]
[1757345374021,0.1967747,886.89,884.73,4.06438989]
[1757345374222,0.1967747,886.89,884.73,3.29738499]
[1757345374920,0.1967747,886.89,884.73,5.81869045]
[1757345375622,0.1967747,886.89,884.73,3.29738499]
[1757345381737,0.1967747,886.89,884.72,3.29738499]
[1757345382632,0.1967747,886.89,884.71,3.29738499]
[1757345383741,0.1967747,886.89,884.72,4.06483388]
[1757345383937,0.1967747,886.89,884.72,3.29738499]
[1757345391344,0.1967747,886.89,884.7,3.29738499]
[1757345394646,0.1967747,886.89,884.69,3.29738499]
[1757345394946,0.1967747,886.89,884.66,2.52130546]
[1757345395446,0.1967747,886.89,884.63,3.29738499]
[1757345395641,0.1967747,886.89,884.64,4.06722485]
[1757345395847,0.1967747,886.89,884.64,3.29738499]
[1757345398944,0.1967747,886.89,884.64,5.81869045]
[1757345400743,0.1967747,886.89,884.64,2.52130546]
[1757345400945,0.1967747,886.89,884.62,5.81869045]
[1757345403551,0.1967747,886.89,884.53,3.29738499]
[1757345404747,0.1967747,886.89,884.54,4.06797405]
[1757345404947,0.1967747,886.89,884.55,4.06795509]
[1757345405149,0.1967747,886.89,884.55,3.29738499]
[1757345407348,0.1967747,886.89,884.55,5.81869045]
[1757345409253,0.1967747,886.89,884.6,3.29738499]
[1757345409753,0.1967747,886.89,884.6,5.81869045]
[1757345415253,0.1967747,886.89,884.6,2.52130546]
[1757345415452,0.1967747,886.89,884.58,3.29738499]
[1757345417152,0.1967747,886.89,884.57,3.29738499]
[1757345418653,0.1967747,886.89,884.52,3.29738499]
[1757345420856,0.1967747,886.89,884.48,3.29738499]
[1757345421059,0.1967747,886.89,884.42,5.81869045]
[1757345424356,0.1967747,886.89,884.27,3.29738499]
[1757345424962,0.1967747,886.89,884.27,5.81869045]
[1757345428565,0.1967747,886.89,884.27,3.29738499]
[1757345430066,0.1967747,886.89,884.27,5.81869045]
[1757345431062,0.1967747,886.89,884.27,2.52130546]
[1757345431366,0.1967747,886.89,884.23,3.29738499]
[1757345433064,0.1967747,886.89,884.22,3.29738499]
[1757345433869,0.1967747,886.89,884.22,5.81869045]
[1757345441074,0.1967747,886.89,884.23,6.58558053]
[1757345441271,0.1967747,886.89,884.23,5.81869045]
[1757345443770,0.1967747,886.89,884.24,4.06416716]
[1757345444071,0.1967747,886.89,884.24,5.81869045]
[1757345446872,0.1967747,886.89,884.24,2.52130546]
[1757345447276,0.1967747,886.89,884.23,5.81869045]
[1757345450479,0.1967747,886.89,884.23,3.29738499]
[1757345451679,0.1967747,886.89,884.24,4.06436547]
[1757345451878,0.1967747,886.89,884.24,3.29738499]
[1757345452877,0.1967747,886.89,884.23,3.29738499]
[1757345458587,0.1967747,886.89,884.22,3.29738499]
[1757345458886,0.1967747,886.89,884.21,3.29738499]
[1757345464485,0.1967747,886.89,884.24,1.77874072]
[1757345464789,0.1967747,886.89,884.24,3.29738499]
[1757345467493,0.1967747,886.89,884.25,3.29738499]
[1757345467788,0.1967747,886.89,884.24,3.29738499]
[1757345469896,0.1967747,886.89,884.25,4.06593797]
[1757345470089,0.1967747,886.89,884.25,5.81869045]
[1757345470491,0.1967747,886.89,884.25,2.52130546]
[1757345470690,0.1967747,886.89,884.24,3.29738499]
[1757345471795,0.1967747,886.89,884.23,3.29738499]
[1757345473393,0.1967747,886.89,884.21,3.29738499]
[1757345473697,0.1967747,886.89,884.22,4.06663989]
[1757345473998,0.1967747,886.89,884.21,3.29738499]
[1757345474196,0.1967747,886.89,884.22,4.06665875]
[1757345474397,0.1967747,886.89,884.22,3.29738499]
[1757345475894,0.1967747,886.89,884.22,5.81869045]
[1757345476398,2.5374111,887.42,884.22,5.81869045]
[1757345476595,0.19685151,886.23,884.22,5.81869045]
[1757345476794,2.5374111,887.47,884.22,3.29738499]
[1757345476994,2.5374111,887.47,884.21,3.29738499]
[1757345477196,0.19685652,885.73,884.21,3.29738499]
[1757345477397,2.5374111,887.77,884.21,3.29738499]
[1757345477698,0.19685652,886.66,884.21,3.29738499]
[1757345477904,2.5374111,887.77,884.21,3.29738499]
[1757345478098,0.19683982,886.89,884.21,3.29738499]
[1757345482098,0.19683982,886.89,884.15,3.29738499]
[1757345483004,0.19683982,886.89,884.1,3.29738499]
[1757345483205,0.19683982,886.89,883.88,3.29738499]
[1757345483407,0.19683982,886.89,883.83,3.29738499]
[1757345483600,0.19683982,886.89,883.83,5.81869045]
[1757345484605,0.19683982,886.89,883.83,3.29738499]
[1757345485806,0.19683982,886.89,883.82,3.29738499]
[1757345487503,0.19683982,886.89,883.83,4.06760978]
[1757345487705,0.19683982,886.89,883.83,3.29738499]
[1757345488808,0.19683982,886.89,883.82,3.29738499]
[1757345489115,0.19683982,886.89,883.83,4.06716396]
[1757345489316,0.19683982,886.89,883.83,3.29738499]
[1757345493423,0.19683982,886.89,883.84,0.76905821]
[1757345493620,0.19683982,886.89,883.84,3.29738499]
[1757345494424,0.19683982,886.89,883.84,5.81869045]
[1757345503829,0.19683982,886.89,883.85,6.58685975]
[1757345504125,0.19683982,886.89,883.85,2.52130546]
[1757345504328,0.19683982,886.89,883.84,5.81869045]
[1757345505029,0.19683982,886.89,883.84,2.52130546]
[1757345505425,0.19683982,886.89,883.83,5.81869045]
[1757345516826,0.19683982,886.89,883.83,3.29738499]
[1757345523134,0.19683982,886.89,883.83,5.81869045]
[1757345526739,0.19683982,886.89,883.83,3.29738499]
[1757345528941,0.19683982,886.89,883.54,2.52130546]
[1757345528942,0.19683982,886.89,883.82,3.29738499]
[1757345529143,0.19683982,886.89,883.81,3.29738499]
[1757345529844,0.19683982,886.89,883.68,3.29738499]
[1757345530039,0.19683982,886.89,883.67,3.29738499]
[1757345530844,2.5374111,886.79,883.67,3.29738499]
[1757345531340,2.5374111,886.79,883.67,5.81869045]
[1757345531545,2.5374111,886.76,883.67,5.81869045]
[1757345532446,2.5374111,886.58,883.67,2.52130546]
[1757345533048,0.19683982,886.89,883.63,5.81869045]
[1757345533049,2.5374111,886.62,883.63,5.81869045]
[1757345533343,2.5374111,886.62,883.63,3.29738499]
[1757345533646,0.19683982,886.89,883.63,3.29738499]
[1757345536750,2.73425092,886.89,883.63,3.29738499]
[1757345537249,2.5374111,886.88,883.63,3.29738499]
[1757345538251,2.5374111,886.87,883.63,3.29738499]
[1757345539150,2.5374111,886.86,883.63,3.29738499]
[1757345540247,0.19683982,886.89,883.63,3.29738499]
[1757345541356,0.19683982,886.89,883.59,2.52130546]
[1757345541654,0.19683982,886.89,883.54,3.29738499]
[1757345542156,0.19683982,886.89,883.53,3.29738499]
[1757345542353,0.19683982,886.89,883.54,4.06900704]
[1757345542549,0.19683982,886.89,883.54,3.29738499]
[1757345543256,0.19683982,886.89,883.36,2.52130546]
[1757345543257,0.19683982,886.89,883.53,3.29738499]
[1757345546053,2.5374111,886.83,883.53,3.29738499]
[1757345546356,2.5374111,886.83,883.53,5.81869045]
[1757345546554,2.5374111,886.46,883.53,5.81869045]
[1757345548553,2.5374111,886.47,883.53,5.81869045]
[1757345548953,2.5374111,886.55,883.53,5.81869045]
[1757345550557,2.5374111,886.57,883.53,5.81869045]
[1757345552666,2.5374111,886.61,883.53,5.81869045]
[1757345553668,2.5374111,886.62,883.53,5.81869045]
[1757345554170,2.5374111,886.68,883.53,5.81869045]
[1757345555165,2.5374111,886.67,883.53,5.81869045]
[1757345556167,2.5374111,886.65,883.53,5.81869045]
[1757345557267,2.5374111,886.66,883.53,5.81869045]
[1757345558774,2.5374111,886.62,883.53,5.81869045]
[1757345559775,2.5374111,886.62,883.53,3.29738499]
[1757345560076,2.5374111,886.8,883.53,3.29738499]
[1757345560373,2.5374111,886.78,883.53,3.29738499]
[1757345560974,2.5374111,886.79,883.53,3.29738499]
[1757345561574,2.5374111,886.79,883.54,4.06744967]
[1757345561774,2.5374111,886.79,883.54,3.29738499]
[1757345562574,2.5374111,886.78,883.54,3.29738499]
[1757345562975,2.5374111,886.78,883.55,0.77003087]
[1757345563180,0.19683982,886.89,883.73,3.29738499]
[1757345564475,0.19683982,886.89,883.74,4.06704859]
[1757345564681,0.19683982,886.89,883.74,3.29738499]
[1757345568680,0.19683982,886.89,883.74,5.81869045]
[1757345568880,0.19683982,886.89,883.83,3.29738499]
[1757345568881,2.5374111,886.83,883.83,3.29738499]
[1757345569180,0.19683982,886.89,883.85,3.29738499]
[1757345570785,0.19683982,886.89,883.84,3.29738499]
[1757345574285,0.19683982,886.89,883.83,3.29738499]
[1757345574890,0.19683982,886.89,883.76,3.29738499]
[1757345575786,0.19683982,886.89,883.77,4.06736721]
[1757345575989,0.19683982,886.89,883.77,3.29738499]
[1757345578287,0.19683982,886.89,883.84,3.29738499]
[1757345579092,0.19683982,886.89,883.87,3.29738499]
[1757345584191,0.19683982,886.89,883.94,3.29738499]
[1757345584392,0.19683982,886.89,883.99,3.29738499]
[1757345586491,0.19683982,886.89,883.99,3.29548087]
[1757345593996,0.19683982,886.89,883.99,2.5342197]
[1757345594196,0.19683982,886.89,883.99,3.29444647]
[1757345594396,0.19683982,886.89,883.99,5.81575193]
[1757345596096,0.19683982,886.89,883.99,2.52130546]
[1757345596297,0.19683982,886.89,883.98,5.81575193]
[1757345598701,0.19683982,886.89,883.98,2.52130546]
[1757345599000,0.19683982,886.89,883.95,3.29444647]
[1757345599200,0.19683982,886.89,883.93,3.29444647]
[1757345602902,0.19683982,886.89,883.92,3.29444647]
[1757345603306,0.19683982,886.89,883.93,0.76809529]
[1757345603603,0.19683982,886.89,883.94,4.06254176]
[1757345603804,0.19683982,886.89,883.94,3.29444647]
[1757345606211,0.19683982,886.89,883.94,1.01557543]
[1757345606510,0.19683982,886.89,883.93,3.29444647]
[1757345608811,0.19683982,886.89,883.93,5.81575193]
[1757345611424,0.19683982,886.89,883.93,3.29444647]
[1757345621329,2.5374111,886.88,883.93,3.29444647]
[1757345621626,2.5374111,886.88,883.93,5.81575193]
[1757345621926,0.19683982,886.89,883.93,5.81575193]
[1757345625430,0.19683982,886.89,883.93,2.52130546]
[1757345625634,0.19683982,886.89,883.78,3.29444647]
[1757345625930,0.19683982,886.89,883.77,3.29444647]
[1757345629536,0.19683982,886.89,883.71,3.29444647]
[1757345629939,0.19683982,886.89,883.7,3.29444647]
[1757345630435,0.19683982,886.89,883.71,4.06691255]
[1757345630637,0.19683982,886.89,883.71,3.29444647]
[1757345632336,0.19683982,886.89,883.71,5.81575193]
[1757345633438,0.19683982,886.89,883.71,3.29444647]
[1757345633838,0.19683982,886.89,883.7,5.81575193]
[1757345634335,0.19683982,886.89,883.7,3.29444647]
[1757345635536,0.19683982,886.89,883.68,2.52130546]
[1757345635835,2.5374111,886.81,883.59,5.81575193]
[1757345636733,0.19683982,886.89,883.59,3.29444647]
[1757345645942,0.19683982,886.89,883.6,0.76979477]
[1757345646144,0.19683982,886.89,883.6,3.29444647]
[1757345646443,0.19683982,886.89,883.71,3.29444647]
[1757345647544,0.19683982,886.89,883.73,3.29444647]
[1757345647746,0.19683982,886.89,883.82,3.29444647]
[1757345648244,0.19683982,886.89,883.81,3.29444647]
[1757345650745,0.19683982,886.89,883.8,3.29444647]
[1757345655552,0.19683982,886.89,883.79,3.29444647]
[1757345655750,0.19683982,886.89,883.73,3.29444647]
[1757345656853,0.19683982,886.89,883.73,5.81575193]
[1757345661558,0.19683982,886.89,883.73,3.29444647]
[1757345663064,0.19683982,886.89,883.74,4.06383576]
[1757345663264,0.19683982,886.89,883.74,3.29444647]
[1757345666163,0.19683982,886.89,883.73,3.29444647]
[1757345667569,2.5374111,886.82,883.73,3.29444647]
[1757345667763,2.5374111,886.82,883.73,5.81575193]
[1757345668970,2.5374111,886.7,883.73,5.81575193]
[1757345669565,2.5374111,886.67,883.73,5.81575193]
[1757345670072,2.5374111,886.72,883.73,5.81575193]
[1757345670571,2.5374111,886.71,883.73,5.81575193]
[1757345670771,2.5374111,886.71,883.74,4.06365238]
[1757345670967,2.5374111,886.71,883.74,5.81575193]
[1757345671172,2.5374111,886.86,883.74,2.52130546]
[1757345671371,2.5374111,886.86,883.73,3.29444647]
[1757345671568,0.19683982,886.89,883.73,3.29444647]
[1757345672072,0.19683982,886.89,883.74,4.06370303]
[1757345672372,0.19683982,886.89,883.74,3.29444647]
[1757345673179,0.19683982,886.89,883.73,3.29444647]
[1757345673476,0.19683982,886.89,883.74,4.0638161]
[1757345673680,0.19683982,886.89,883.74,3.29444647]
[1757345674675,0.19683982,886.89,883.74,2.27887104]
[1757345674976,0.19683982,886.89,883.73,3.29444647]
[1757345678079,2.5374111,887.07,883.73,3.29444647]
[1757345678380,0.19695233,886.11,883.73,3.29444647]
[1757345678582,2.5374111,887.06,883.73,3.29444647]
[1757345678980,0.19695289,885.52,883.73,3.29444647]
[1757345679179,2.5374111,887.06,883.73,3.29444647]
[1757345679383,0.19695289,886.23,883.73,3.29444647]
[1757345680782,0.19695289,886.23,883.73,5.81575193]
[1757345681791,0.19695289,886.23,883.73,3.29444647]
[1757345681989,0.19695289,886.23,883.69,3.29444647]
[1757345682190,0.19695289,886.23,883.62,3.29444647]
[1757345682585,0.19695289,886.23,883.61,3.29444647]
[1757345683789,0.19695289,886.23,883.62,4.06489237]
[1757345683989,0.19695289,886.23,883.62,3.29444647]
[1757345685293,0.19695289,886.23,883.63,4.06496801]
[1757345685592,0.19695289,886.23,883.63,3.29444647]
[1757345685791,0.19695289,886.23,883.58,3.29444647]
[1757345685989,0.19695289,886.23,883.6,3.29444647]
[1757345686493,0.19695289,886.23,883.59,3.29444647]
[1757345687989,0.19695289,886.23,883.58,3.29444647]
[1757345688394,0.19695289,886.23,883.59,4.06510997]
[1757345688594,0.19695289,886.23,883.59,3.29444647]
[1757345692401,0.19695289,886.23,883.58,3.29444647]
[1757345692899,0.19695289,886.23,883.54,3.29444647]
[1757345693596,0.19695289,886.23,883.56,3.29444647]
[1757345694403,0.19695289,886.23,883.55,3.29444647]
[1757345696701,0.19695289,886.23,883.54,3.29444647]
[1757345700410,0.19695289,886.23,883.53,3.29444647]
[1757345700710,0.19695289,886.23,883.52,3.29444647]
[1757345702107,0.19695289,886.23,883.38,2.52130546]
[1757345702108,0.19695289,886.23,883.51,3.29444647]
[1757345703506,0.19695289,886.23,883.37,2.52130546]
[1757345703507,0.19695289,886.23,883.46,2.52130546]
[1757345704106,0.19695289,886.23,883.43,5.81575193]
[1757345710514,0.19695289,886.23,883.44,4.06496514]
[1757345710712,0.19695289,886.23,883.5,3.29444647]
[1757345712910,0.19695289,886.23,883.5,2.27887104]
[1757345713116,0.19695289,886.23,883.49,3.29444647]
[1757345713316,0.19695289,886.23,883.5,4.06485606]
[1757345713516,0.19695289,886.23,883.5,3.29444647]
[1757345716719,0.19695289,886.23,883.53,3.29444647]
[1757345716922,0.19695289,886.23,883.53,5.81575193]
[1757345717221,0.19695289,886.23,883.59,3.29444647]
[1757345717418,0.19695289,886.23,883.62,5.81575193]
[1757345719023,0.19695289,886.23,883.62,3.29444647]
[1757345719919,0.19695289,886.23,883.61,3.29444647]
[1757345720125,0.19695289,886.23,883.6,3.29444647]
[1757345728332,0.19695289,886.23,883.61,4.06329687]
[1757345728532,0.19695289,886.23,883.61,3.29444647]
[1757345728928,0.19695289,886.23,883.6,3.29444647]
[1757345730030,0.19695289,886.23,883.61,4.06336937]
[1757345730229,0.19695289,886.23,883.61,3.29444647]
[1757345735735,0.19695289,886.23,883.61,2.52130546]
[1757345736136,0.19695289,886.23,883.6,5.81575193]
[1757345736736,0.19695289,886.23,883.6,3.29444647]
[1757345738238,0.19695289,886.23,883.59,3.29444647]
[1757345738538,0.19695289,886.23,883.57,2.52130546]
[1757345738740,0.19695289,886.23,883.51,3.29444647]
[1757345739042,0.19695289,886.23,883.49,2.52130546]
[1757345739242,0.19695289,886.23,883.46,3.29444647]
[1757345750554,0.19695289,886.23,883.42,2.52130546]
[1757345750754,0.19695289,886.23,883.39,3.29444647]
[1757345751355,0.19695289,886.23,883.39,2.52130546]
[1757345751760,0.19695289,886.23,883.32,5.81575193]
[1757345754661,0.19695289,886.23,883.33,4.06440105]
[1757345754862,0.19695289,886.23,883.33,3.29444647]
[1757345755056,0.19695289,886.23,883.33,5.81575193]
[1757345756561,0.19695289,886.23,883.34,4.06326607]
[1757345756756,0.19695289,886.23,883.34,3.29444647]
[1757345761257,0.19695289,886.23,883.33,3.29444647]
[1757345762464,0.19695289,886.23,883.34,4.06296032]
[1757345762664,0.19695289,886.23,883.34,3.29444647]
[1757345763267,0.19695289,886.23,883.33,3.29444647]
[1757345766565,0.19695289,886.23,883.33,5.81575193]
[1757345766869,0.19695289,886.23,883.34,4.0630288]
[1757345767070,0.19695289,886.23,883.34,5.81575193]
[1757345767770,0.19695289,886.23,883.36,3.29444647]
[1757345768070,0.19695289,886.23,883.36,5.81575193]
[1757345768268,0.19695289,886.23,883.44,3.29444647]
[1757345768573,0.19695289,886.23,883.43,5.81575193]
[1757345769371,0.19695289,886.23,883.43,2.52130546]
[1757345769571,0.19695289,886.23,883.42,5.81575193]
[1757345770568,0.19695289,886.23,883.42,3.29444647]
[1757345778184,0.19695289,886.23,883.37,3.29444647]
[1757345780485,3.5523755,887.33,883.05,3.09739544]
[1757345781283,2.5374111,887.19,883.05,3.09739544]
[1757345781784,2.5374111,886.71,883.05,3.09739544]
[1757345782386,2.5374111,886.74,883.05,3.09739544]
[1757345783397,0.19708451,885.82,883.05,3.09739544]
[1757345785592,0.19708451,885.82,883.05,3.10000313]
[1757345786092,0.19708451,885.82,883.06,0.76764785]
[1757345786290,0.19708451,885.82,883.06,1.77840989]
[1757345786993,0.19708451,885.82,883.05,1.77840989]
[1757345787288,0.19708451,885.82,883.06,2.54592605]
[1757345787493,0.19708451,885.82,883.06,1.77840989]
[1757345790392,0.19708451,885.82,883.07,2.54560404]
[1757345790597,0.19708451,885.82,883.06,1.77840989]
[1757345793298,0.19708451,885.82,883.06,1.77789482]
[1757345795595,0.19708451,885.82,883.05,1.77789482]
[1757345797696,0.19708451,885.82,883.04,1.77789482]
[1757345797901,0.19708451,885.82,883.05,2.54510151]
[1757345798097,0.19708451,885.82,883.05,1.77789482]
[1757345800404,0.19708451,885.82,882.92,3.30286759]
[1757345800704,0.19708451,885.82,882.93,4.07013951]
[1757345800902,0.19708451,885.82,882.92,3.30286759]
[1757345806507,0.19708451,885.82,882.93,4.06964717]
[1757345806804,0.19708451,885.82,882.92,3.30286759]
[1757345809112,0.19708451,885.82,882.93,4.06963308]
[1757345809316,0.19708451,885.82,882.93,3.30286759]
[1757345810112,0.19708451,885.82,882.92,3.30286759]
[1757345818721,0.19708451,885.82,882.93,4.06862265]
[1757345818920,0.19708451,885.82,882.93,3.30286759]
[1757345824524,0.19708451,885.82,882.92,3.30286759]
[1757345825727,0.19708451,885.82,882.92,5.82417305]
[1757345826736,0.19708451,885.82,882.92,3.30286759]
[1757345835345,0.19708451,885.82,882.83,3.30286759]
[1757345838246,0.19708451,885.82,882.82,3.30286759]
[1757345842248,0.19708451,885.82,882.85,3.30286759]
[1757345842451,0.19708451,885.82,883.13,3.30286759]
[1757345842851,0.19708451,885.82,883.1,3.30286759]
[1757345845351,0.19708451,885.82,883.11,4.07554388]
[1757345845551,0.19708451,885.82,883.11,3.30286759]
[1757345847056,0.19708451,885.82,883.14,3.30286759]
[1757345853364,0.19708451,885.82,883.2,3.30286759]
[1757345855665,0.19708451,885.82,883.18,3.30286759]
[1757345855865,0.19708451,885.82,883.17,3.30286759]
[1757345857068,0.19708451,885.82,883.13,3.30286759]
[1757345857363,0.19708451,885.82,883.09,3.30286759]
[1757345859170,0.19708451,885.82,883.08,3.30286759]
[1757345859469,0.19708451,885.82,883.03,3.30286759]
[1757345860569,0.19708451,885.82,883.02,3.30286759]
[1757345860769,0.19708451,885.82,883.02,5.82417305]
[1757345861767,0.19708451,885.82,883.02,3.30286759]
[1757345872078,0.19708451,885.82,883.03,0.77244068]
[1757345872284,0.19708451,885.82,883.03,3.30286759]
[1757345872478,0.19708451,885.82,883.04,0.77243524]
[1757345872672,0.19708451,885.82,883.04,3.30286759]
[1757345874776,0.19708451,885.82,883.03,3.30286759]
[1757345877682,0.19708451,885.82,882.89,3.30286759]
[1757345882085,0.19708451,885.82,882.9,0.77117185]
[1757345882282,0.19708451,885.82,882.91,4.07403691]
[1757345882481,0.19708451,885.82,882.91,3.30286759]
[1757345882689,0.19708451,885.82,882.9,3.30286759]
[1757345883788,0.19708451,885.82,882.91,3.30286759]
[1757345883993,0.19708451,885.82,882.9,3.30286759]
[1757345884193,0.19708451,885.82,882.91,4.07401639]
[1757345884391,0.19708451,885.82,882.93,3.30286759]
[1757345885186,0.19708451,885.82,882.43,2.52130546]
[1757345885187,0.19708451,885.82,882.95,3.30286759]
[1757345886392,0.19708451,885.82,883.01,3.30286759]
[1757345886587,0.19708451,885.82,883.02,4.0739586]
[1757345886790,0.19708451,885.82,883.04,3.30286759]
[1757345886991,0.19708451,885.82,883.11,3.30286759]
[1757345887188,0.19708451,885.82,883.12,4.07389211]
[1757345887393,0.19708451,885.82,883.12,3.30286759]
[1757345888392,0.19708451,885.82,883.13,0.77099387]
[1757345888590,0.19708451,885.82,883.15,3.30286759]
[1757345889492,0.19708451,885.82,883.15,5.82417305]
[1757345894096,0.19708451,885.82,883.16,0.77080679]
[1757345894297,0.19708451,885.82,882.87,3.5420712]
[1757345894298,0.19708451,885.82,883.19,5.82417305]
[1757345903605,0.19708451,885.82,883.18,5.82417305]
[1757345903805,0.19708451,885.82,883.18,2.52130546]
[1757345904006,0.19708451,885.82,883.17,3.30286759]
[1757345904507,0.19708451,885.82,883.17,5.82417305]
[1757345904907,0.19708451,885.82,883.18,4.07412329]
[1757345905204,0.19708451,885.82,883.18,5.82417305]
[1757345905908,0.19708451,885.82,883.18,2.52130546]
[1757345906104,0.19708451,885.82,883.17,5.82417305]
[1757345908710,0.19708451,885.82,883.17,3.30286759]
[1757345909506,0.19708451,885.82,883.18,4.07405495]
[1757345909710,0.19708451,885.82,883.18,3.30286759]
[1757345910010,0.19708451,885.82,883.17,3.30286759]
[1757345917713,0.19708451,885.82,883.14,3.30286759]
[1757345921810,0.19708451,885.82,883.03,3.30286759]
[1757345922111,0.19708451,885.82,883.04,4.07417274]
[1757345922313,0.19708451,885.82,883.05,4.07418053]
[1757345922617,0.19708451,885.82,883.05,3.30286759]
[1757345925015,0.19708451,885.82,883.04,3.30286759]
[1757345925913,0.19708451,885.82,882.5,2.52130546]
[1757345925914,0.19708451,885.82,883.05,4.07419777]
[1757345926117,0.19708451,885.82,883.05,3.30286759]
[1757345934224,0.19708451,885.82,883.06,4.07425531]
[1757345934423,0.19708451,885.82,883.06,3.30286759]
[1757345936128,0.19708451,885.82,883.07,4.07426339]
[1757345936424,0.19708451,885.82,883.07,3.30286759]
[1757345937323,0.19708451,885.82,883.08,0.77138721]
[1757345937526,0.19708451,885.82,883.14,3.30286759]
[1757345939026,0.19708451,885.82,883.18,3.30286759]
[1757345939329,0.19708451,885.82,883.21,5.82417305]
[1757345942433,0.19708451,885.82,883.22,0.77154332]
[1757345942631,0.19708451,885.82,883.22,3.30286759]
[1757345942934,0.19708451,885.82,883.23,6.59569774]
[1757345943129,0.19708451,885.82,883.23,5.82417305]
[1757345944133,0.19708451,885.82,883.27,3.30286759]
[1757345944335,0.19708451,885.82,883.28,4.07448379]
[1757345944633,0.19708451,885.82,883.28,5.82417305]
[1757345946330,0.19708451,885.82,883.3,3.30286759]
[1757345946533,0.19708451,885.82,883.37,5.82417305]
[1757345947333,0.19708451,885.82,883.38,4.07434122]
[1757345947532,0.19708451,885.82,883.38,3.30286759]
[1757345949234,0.19708451,885.82,883.43,3.30286759]
[1757345951544,0.19708451,885.82,883.44,4.07331284]
[1757345951744,0.19708451,885.82,883.48,3.30286759]
[1757345953641,0.19708451,885.82,883.53,2.28729216]
[1757345953841,0.19708451,885.82,883.53,3.30286759]
[1757345958242,0.19708451,885.82,883.6,3.30286759]
[1757345962351,0.19708451,885.82,883.61,4.07066663]
[1757345962552,0.19708451,885.82,883.61,3.30286759]
[1757345962954,0.19708451,885.82,883.62,4.07065712]
[1757345963249,0.19708451,885.82,883.62,3.30286759]
[1757345966857,0.19708451,885.82,883.61,3.30286759]
[1757345969858,0.19708451,885.82,883.61,3.30013136]
[1757345970156,0.19708451,885.82,883.62,4.06692696]
[1757345970460,0.19708451,885.82,883.62,3.30013136]
[1757345976159,0.19708451,885.82,883.63,4.06646258]
[1757345976358,0.19708451,885.82,883.63,3.30013136]
[1757345978559,0.19708451,885.82,883.54,2.52130546]
[1757345978560,0.19708451,885.82,883.62,3.30013136]
[1757345979259,0.19708451,885.82,883.6,3.30013136]
[1757345980260,0.19708451,885.82,883.55,3.30013136]
[1757345982863,0.19708451,885.82,883.56,4.0665411]